bitfinex/quotes_ETHUSD_20250110
["timestamp","ask_amount","ask_price","bid_price","bid_amount"]
[1736481788525,2.29361309,3258.7,3258.1,0.8064]
[1736481788694,2.29361309,3258.7,3258.2,0.224]
[1736481788893,2.29361309,3258.7,3258.2,3.29317]
[1736481789137,2.29361309,3258.7,3258.2,3.703127]
[1736481790047,2.29361309,3258.7,3258.2,0.66464546]
[1736481790209,2.29361309,3258.7,3258.4,3.06898]
[1736481790610,2.84361309,3259.0,3258.4,3.06898]
[1736481790916,2.29361309,3259.0,3258.4,3.06898]
[1736481791255,5.28,3259.1,3258.6,3.06873]
[1736481791403,5.28,3259.1,3258.7,0.805]
[1736481792655,0.55,3259.2,3258.4,4.07942]
[1736481792818,7.57361309,3259.3,3258.4,1.418442]
[1736481793022,7.57361309,3259.3,3258.6,3.06879]
[1736481793288,7.57361309,3259.3,3258.5,0.03068498]
[1736481793422,5.28,3259.3,3258.7,0.03068498]
[1736481793639,2.29361309,3259.6,3259.1,3.06824]
[1736481793830,2.29361309,3259.9,3259.1,3.06824]
[1736481794362,2.29361309,3259.9,3259.1,3.45678201]
[1736481794709,0.55,3259.8,3259.1,3.45678201]
[1736481796824,0.55,3259.8,3259.2,3.06822]
[1736481797045,0.1678,3260.1,3259.2,0.03068008]
[1736481797249,7.57361309,3260.2,3259.6,3.06783]
[1736481797947,0.55,3260.1,3259.3,1.0232]
[1736481798148,2.29361309,3259.9,3259.3,4.09133]
[1736481799535,0.7178,3259.8,3259.3,0.224]
[1736481802969,0.7178,3259.8,3259.0,3.2924]
[1736481803164,0.7178,3259.8,3259.0,3.69923]
[1736481804095,0.55,3259.5,3258.8,0.7759]
[1736481804387,0.1678,3259.2,3258.8,0.224]
[1736481804618,0.1678,3259.2,3258.5,0.224]
[1736481805714,0.1678,3259.2,3258.4,3.0689]
[1736481805915,2.29361309,3259.0,3258.4,3.2929]
[1736481806096,2.29361309,3259.0,3258.4,3.70025]
[1736481806663,2.29361309,3259.0,3258.3,0.7806]
[1736481806897,0.55,3258.9,3258.3,0.224]
[1736481807366,2.29361309,3259.0,3258.3,0.224]
[1736481807367,2.29361309,3258.7,3258.3,0.224]
[1736481808003,2.29361309,3258.4,3257.6,3.85196]
[1736481808195,2.29361309,3258.4,3257.7,0.224]
[1736481808381,2.29361309,3258.4,3257.7,3.701226]
[1736481808709,0.55,3258.3,3257.7,3.29363]
[1736481809513,2.29361309,3258.1,3257.7,0.224]
[1736481811814,0.1678,3258.0,3257.6,3.06974]
[1736481811997,0.1678,3258.0,3257.5,0.224]
[1736481812166,0.1678,3258.0,3257.5,3.29379]
[1736481812800,0.1678,3258.0,3257.5,3.06979]
[1736481813116,2.29361309,3257.8,3257.2,0.7823]
[1736481813310,2.29361309,3257.8,3257.3,0.224]
[1736481813477,2.29361309,3257.8,3257.3,3.07002]
[1736481813701,2.29361309,3257.8,3257.3,3.29402]
[1736481814015,2.29361309,3257.8,3257.3,0.63470179]
[1736481814171,0.1678,3258.0,3257.4,0.03069785]
[1736481814374,0.1678,3258.0,3257.6,3.06973]
[1736481815115,2.29361309,3257.7,3257.3,0.224]
[1736481815322,2.29361309,3257.7,3257.4,3.06991]
[1736481815470,2.29361309,3258.0,3257.6,3.06972]
[1736481815673,2.29361309,3258.3,3257.6,3.06972]
[1736481815891,2.29361309,3258.3,3257.7,3.06963]
[1736481816418,2.29361309,3258.3,3257.5,3.06981]
[1736481816581,2.29361309,3258.0,3257.5,3.06981]
[1736481816978,0.1678,3257.8,3257.3,3.06998]
[1736481817176,2.29361309,3258.0,3257.4,0.03069777]
[1736481817514,2.29361309,3258.0,3257.5,3.06974]
[1736481817826,2.5397544,3258.0,3257.4,0.224]
[1736481821218,2.29361309,3258.0,3257.4,0.224]
[1736481821379,2.29361309,3258.0,3257.4,3.29392]
[1736481822118,2.29361309,3258.0,3257.4,3.06992]
[1736481822285,2.29361309,3258.0,3257.3,0.224]
[1736481822286,0.1678,3257.9,3257.3,0.224]
[1736481822477,0.1678,3257.9,3257.5,3.06983]
[1736481822673,5.28,3258.2,3257.6,0.03069698]
[1736481822874,2.46141309,3258.9,3258.2,3.06914]
[1736481823098,2.46141309,3258.9,3258.4,3.06896]
[1736481823327,0.1678,3258.9,3258.5,3.06887]
[1736481825123,0.1678,3258.9,3258.3,0.8033]
[1736481825124,5.28,3259.1,3258.4,0.03068639]
[1736481825421,7.74141309,3259.5,3258.6,3.0688]
[1736481825585,7.74141309,3259.5,3258.9,3.06846]
[1736481826006,2.46141309,3259.5,3259.0,3.06842]
[1736481826211,2.46141309,3259.8,3259.2,3.06823]
[1736481826530,2.46141309,3259.8,3259.0,3.06841]
[1736481827176,0.55,3259.7,3258.8,3.0686]
[1736481827410,2.29361309,3259.5,3258.6,3.0688]
[1736481827922,2.29361309,3259.2,3258.4,0.812]
[1736481828224,2.29361309,3258.9,3258.5,0.224]
[1736481828403,0.1678,3258.8,3258.5,0.224]
[1736481830595,0.1678,3258.8,3258.4,3.06897]
[1736481831396,0.7178,3259.1,3258.5,3.06889]
[1736481831592,0.7178,3259.1,3258.2,0.25468717]
[1736481831914,0.7178,3259.1,3258.6,3.06879]
[1736481832581,0.7178,3259.1,3258.4,3.06895]
[1736481837325,0.7178,3259.1,3258.2,0.224]
[1736481837529,5.28,3259.4,3258.7,3.06869]
[1736481837733,5.4478,3259.4,3258.8,3.06856]
[1736481837938,5.4478,3259.4,3259.1,3.06828]
[1736481838238,5.28,3259.4,3259.1,3.06828]
[1736481838824,5.28,3259.4,3258.9,3.0685]
[1736481839043,0.1678,3259.3,3258.7,3.0687]
[1736481839945,0.55,3259.2,3258.4,3.06893]
[1736481840251,2.84361309,3259.2,3258.4,3.06893]
[1736481840447,2.84361309,3259.2,3258.3,0.8001]
[1736481840599,2.84361309,3259.2,3258.6,3.06877]
[1736481840800,2.29361309,3258.9,3258.1,3.06922]
[1736481841027,0.1678,3258.7,3258.2,0.224]
[1736481841236,2.29361309,3258.6,3257.9,3.06944]
[1736481841400,0.1678,3258.1,3257.6,0.224]
[1736481843041,0.1678,3258.1,3257.6,3.06973]
[1736481846821,0.1678,3258.1,3257.8,3.06951]
[1736481847134,0.22936131,3258.8,3257.5,0.224]
[1736481847135,2.46141309,3258.9,3258.3,3.06906]
[1736481847338,2.46141309,3258.9,3257.9,0.31002057]
[1736481847656,2.46141309,3258.9,3257.5,1.019]
[1736481847657,0.55,3258.5,3257.8,3.06946]
[1736481848002,0.1678,3258.4,3257.8,3.06946]
[1736481848240,0.1678,3258.4,3257.6,3.06972]
[1736481848471,2.29361309,3258.3,3257.7,3.0696]
[1736481848758,2.29361309,3258.3,3257.6,3.06973]
[1736481849054,0.55,3258.2,3257.6,0.224]
[1736481850114,0.55,3258.0,3257.4,3.29386]
[1736481850438,0.55,3258.0,3257.4,0.224]
[1736481851025,0.55,3258.0,3257.4,3.29391]
[1736481851218,0.55,3258.0,3257.4,0.224]
[1736481851402,2.84361309,3258.0,3257.4,0.224]
[1736481851622,0.1678,3257.9,3257.4,0.224]
[1736481855200,0.1678,3257.9,3257.4,3.29392]
[1736481855383,0.55,3258.0,3257.5,3.06983]
[1736481855899,5.4478,3258.1,3257.6,3.06965]
[1736481857351,5.4478,3258.1,3257.7,3.06963]
[1736481857651,3.0,3258.6,3258.0,3.06928]
[1736481857880,2.29361309,3258.6,3258.0,3.06928]
[1736481858097,2.29361309,3258.3,3257.5,0.8293]
[1736481858265,0.1678,3258.2,3257.4,3.29384]
[1736481858460,0.55,3258.1,3257.4,3.29384]
[1736481859078,0.55,3257.9,3257.4,0.224]
[1736481861138,1.37914131,3257.9,3257.4,0.224]
[1736481865037,1.37914131,3257.9,3257.2,3.07009]
[1736481865364,0.1678,3257.8,3257.2,3.29409]
[1736481865647,2.29361309,3257.7,3257.0,3.07029]
[1736481865943,2.29361309,3257.7,3257.1,0.224]
[1736481866091,2.29361309,3257.7,3257.0,3.07029]
[1736481866291,2.29361309,3257.7,3257.0,3.29429]
[1736481866506,2.29361309,3257.7,3257.0,0.224]
[1736481866747,2.29361309,3257.7,3257.1,3.0702]
[1736481869678,2.29361309,3257.7,3257.2,3.07009]
[1736481871938,3.03251585,3257.7,3256.7,3.90244]
[1736481872275,2.46141309,3257.4,3256.8,3.07044]
[1736481873283,2.46141309,3257.4,3256.6,0.224]
[1736481873439,0.1678,3257.4,3257.1,3.07018]
[1736481873994,0.1678,3257.4,3256.9,3.0704]
[1736481874884,2.46141309,3257.4,3256.9,3.0704]
[1736481875244,0.55,3257.3,3256.7,3.07055]
[1736481875447,0.55,3257.3,3256.8,0.224]
[1736481876191,0.55,3257.3,3256.7,3.07055]
[1736481877127,2.84361309,3257.1,3256.6,0.224]
[1736481877281,2.84361309,3257.1,3256.6,3.07065]
[1736481879826,2.84361309,3257.1,3256.5,0.224]
[1736481879996,2.29361309,3256.8,3256.5,0.224]
[1736481880923,2.29361309,3256.8,3256.5,3.29475]
[1736481881530,0.1678,3257.0,3256.6,3.07068]
[1736481881683,0.1678,3257.0,3256.7,3.07058]
[1736481886148,5.4478,3257.3,3256.6,0.7623]
[1736481886354,5.28,3257.3,3257.2,3.07012]
[1736481886521,0.1678,3257.9,3257.7,3.06964]
[1736481886721,0.1678,3258.4,3257.7,3.06964]
[1736481886924,0.1678,3258.2,3257.4,0.224]
[1736481887238,0.55,3258.1,3257.5,3.06981]
[1736481887617,0.55,3258.1,3257.4,0.224]
[1736481887820,5.4478,3257.8,3257.4,0.224]
[1736481888156,5.4478,3257.8,3257.2,3.07004]
[1736481888157,0.1678,3257.4,3256.7,3.29451]
[1736481888310,0.55,3257.3,3256.7,3.29451]
[1736481888514,0.55,3257.3,3256.7,0.224]
[1736481888762,0.55,3257.1,3256.7,0.224]
[1736481889358,0.55,3257.1,3256.2,0.7623]
[1736481889561,3.0,3257.4,3256.4,0.754]
[1736481889763,5.28,3257.5,3257.0,3.07025]
[1736481889945,0.1678,3257.2,3256.7,3.0705]
[1736481890631,0.1678,3257.2,3256.8,3.07043]
[1736481893664,0.1678,3257.2,3256.8,3.07041]
[1736481893871,0.1678,3257.2,3256.9,3.07038]
[1736481894182,0.55,3257.4,3256.7,0.754]
[1736481894500,0.55,3257.4,3256.9,3.07033]
[1736481894649,0.1678,3257.3,3256.9,3.07033]
[1736481900765,0.76758,3257.3,3256.9,3.07033]
[1736481901218,0.55,3257.2,3256.6,0.224]
[1736481901379,0.55,3257.0,3256.6,3.07059]
[1736481901565,0.55,3257.0,3256.4,3.29484]
[1736481902005,0.55,3257.0,3256.5,3.07075]
[1736481902216,0.1678,3257.1,3256.7,3.07053]
[1736481902716,0.55,3257.0,3256.7,3.07053]
[1736481903569,5.83,3257.0,3256.7,3.07053]
[1736481905465,5.83,3257.0,3256.4,0.224]
[1736481905466,5.28,3257.0,3256.9,3.0704]
[1736481909365,0.1678,3257.5,3256.9,3.0704]
[1736481909520,5.28,3257.7,3257.1,3.88665]
[1736481909714,5.28,3258.1,3257.2,0.03069904]
[1736481909900,5.4478,3258.1,3257.3,3.29402]
[1736481910113,5.4478,3258.1,3257.5,3.06981]
[1736481910625,0.55,3258.0,3257.3,3.294]
[1736481910826,0.55,3257.8,3257.3,0.224]
[1736481912533,0.55,3257.8,3257.4,3.06991]
[1736481914599,0.55,3257.8,3257.1,3.07013]
[1736481914798,0.55,3257.6,3257.1,3.07013]
[1736481915399,5.83,3257.6,3257.1,3.07013]
[1736481915601,6.42978,3257.6,3257.1,3.07013]
[1736481917569,6.42978,3257.6,3257.1,0.7717]
[1736481917570,5.28,3257.6,3257.1,0.7717]
[1736481917781,5.28,3257.6,3257.5,3.06983]
[1736481919573,0.1678,3257.7,3257.4,3.0699]
[1736481920093,0.55,3257.8,3257.5,3.06983]
[1736481921304,0.55,3257.8,3257.1,3.07019]
[1736481921492,0.55,3257.8,3257.4,3.06991]
[1736481924925,5.4478,3257.9,3257.3,0.7717]
[1736481925080,5.28,3257.9,3257.7,3.06965]
[1736481928581,5.28,3257.9,3257.5,3.06983]
[1736481928929,0.1678,3257.7,3257.2,3.29403]
[1736481929170,0.55,3257.6,3257.2,3.29403]
[1736481929487,0.55,3257.4,3255.8,0.7603]
[1736481929777,0.1678,3257.5,3255.7,2.29361309]
[1736481929778,5.9978,3257.3,3256.1,3.83144]
[1736481930072,0.55,3257.1,3256.1,4.236984]
[1736481930425,0.55,3256.9,3256.4,3.0708]
[1736481931428,5.83,3256.9,3256.5,3.07075]
[1736481931845,5.83,3256.9,3256.2,3.32570729]
[1736481932471,5.83,3256.9,3256.5,3.07068]
[1736481932960,5.83,3256.9,3256.6,3.07068]
[1736481933761,5.83,3256.9,3256.7,3.07057]
[1736481934287,5.28,3256.9,3256.8,3.07049]
[1736481936385,0.1678,3257.3,3256.6,1.0325]
[1736481936702,0.1678,3257.3,3256.9,3.07039]
[1736481937002,0.1678,3257.3,3256.7,3.07059]
[1736481937204,0.55,3257.5,3257.1,3.07018]
[1736481942691,0.55,3257.5,3257.2,3.07003]
[1736481942891,0.55,3257.5,3257.1,3.07019]
[1736481945443,0.54877171,3257.5,3257.1,3.07019]
[1736481946903,1.14842888,3257.5,3257.1,3.07019]
[1736481947105,0.54877171,3257.5,3257.1,3.07019]
[1736481950960,0.54877171,3257.5,3256.9,3.07039]
[1736481951130,0.55,3257.3,3256.9,3.07039]
[1736481954156,0.55,3257.3,3257.0,3.0703]
[1736481954380,5.83,3257.3,3257.0,3.0703]
[1736481954600,5.83,3257.3,3257.1,3.07016]
[1736481960421,0.55,3257.1,3256.2,0.7726]
[1736481960573,0.1678,3256.8,3256.2,3.84363]
[1736481960772,0.55,3256.7,3256.2,3.07103]
[1736481961791,8.12361309,3256.7,3256.0,3.07122]
[1736481962135,0.1678,3256.4,3256.0,3.07122]
[1736481962277,0.1678,3256.4,3256.1,3.07115]
[1736481962622,5.28,3256.6,3256.3,3.07088]
[1736481963123,5.28,3256.6,3256.0,3.07125]
[1736481963335,5.28,3256.6,3256.3,3.07092]
[1736481963826,5.28,3256.6,3256.4,3.07084]
[1736481964033,5.28,3256.6,3256.5,3.07078]
[1736481964614,0.1678,3257.4,3256.6,3.84328]
[1736481964816,5.4478,3257.7,3257.3,3.07002]
[1736481965020,5.4478,3257.7,3257.4,3.06993]
[1736481965890,5.4478,3257.7,3257.2,3.86401]
[1736481966297,5.4478,3257.7,3257.2,3.07011]
[1736481966497,0.55,3257.6,3257.2,3.07011]
[1736481966771,0.55,3257.6,3256.8,0.7848]
[1736481966901,0.55,3257.6,3257.0,3.07028]
[1736481968433,0.55,3257.6,3256.8,1.19274]
[1736481968638,0.55,3257.6,3257.1,3.07012]
[1736481968930,5.28,3257.7,3257.4,3.06992]
[1736481969312,0.55,3257.8,3257.4,3.06992]
[1736481969527,0.1678,3258.2,3257.3,0.8209]
[1736481969698,0.1678,3258.2,3257.7,3.06959]
[1736481971637,0.55,3258.1,3257.7,3.06959]
[1736481972137,0.55,3258.1,3257.3,0.8209]
[1736481972348,3.55,3258.1,3257.3,1.0449]
[1736481972504,4.15114131,3258.1,3257.3,0.224]
[1736481973715,4.15114131,3258.1,3257.3,3.29401]
[1736481974544,0.55,3257.9,3257.3,3.29401]
[1736481975259,0.55,3257.7,3257.3,0.224]
[1736481975458,0.55,3257.5,3257.1,3.07019]
[1736481976808,3.0,3257.8,3257.0,0.25470149]
[1736481977359,3.0,3257.8,3257.1,3.07021]
[1736481977666,3.0,3257.8,3257.3,3.06994]
[1736481979026,0.55,3257.7,3257.3,3.06994]
[1736481981936,0.55,3257.7,3257.1,3.0702]
[1736481982337,0.55,3257.7,3257.2,3.07008]
[1736481985781,0.55,3257.7,3257.3,3.06999]
[1736481987350,0.55,3257.7,3257.0,0.224]
[1736481987550,0.55,3257.7,3257.1,3.07018]
[1736481989989,0.55,3257.5,3256.9,3.29437]
[1736481992292,0.55,3257.5,3257.0,3.07027]
[1736481993382,5.83,3257.5,3257.0,3.07027]
[1736481995288,5.28,3257.5,3257.0,0.030702]
[1736481995452,5.28,3257.5,3257.4,3.06993]
[1736481995935,5.28,3257.5,3257.4,3.87993]
[1736481996293,0.1678,3258.7,3258.2,3.06917]
[1736481996470,0.1678,3258.7,3258.4,3.06898]
[1736481997582,5.28,3259.1,3258.5,3.8788]
[1736481997583,3.1678,3259.0,3258.5,3.8788]
[1736481997881,0.55,3258.9,3258.5,3.8788]
[1736481998086,0.55,3258.9,3258.5,3.0688]
[1736481998235,1.44978,3258.9,3258.5,3.0688]
[1736482000145,0.55,3258.9,3258.6,3.06876]
[1736482000341,0.1678,3259.5,3258.5,3.06882]
[1736482000579,0.1678,3259.5,3259.1,3.06833]
[1736482000883,0.1678,3260.1,3259.5,3.06795]
[1736482001088,0.9804351,3260.1,3259.2,0.03067966]
[1736482001255,0.9804351,3260.1,3259.8,3.06763]
[1736482001786,0.9804351,3260.1,3259.6,3.06776]
[1736482001984,0.9804351,3260.1,3259.7,3.06772]
[1736482003957,5.28,3260.2,3259.5,3.06795]
[1736482004284,0.55,3260.1,3259.8,3.06762]
[1736482005491,0.55,3260.1,3259.9,3.06756]
[1736482006788,0.1678,3260.3,3260.1,3.06735]
[1736482007003,0.1678,3260.6,3260.1,3.06735]
[1736482007292,0.55,3260.5,3260.1,3.06735]
[1736482008188,0.55,3260.5,3259.6,0.7873]
[1736482008555,0.55,3260.5,3260.1,3.06736]
[1736482009505,0.55,3260.5,3259.7,0.03067423]
[1736482009709,3.0,3260.7,3260.5,3.067]
[1736482010396,3.0,3260.7,3260.2,0.7863]
[1736482010397,3.0,3260.7,3260.2,3.8535]
[1736482010692,3.0,3260.7,3260.2,0.7863]
[1736482010883,3.0,3260.7,3260.0,1.0103]
[1736482011069,3.0,3260.7,3260.2,3.06727]
[1736482011397,0.84478,3260.7,3260.2,3.06727]
[1736482011697,0.55,3260.8,3260.3,3.06718]
[1736482011998,0.55,3261.0,3260.4,3.06704]
[1736482012168,0.55,3261.0,3260.0,1.0103]
[1736482012499,0.55,3260.8,3260.2,3.06725]
[1736482016714,0.55,3260.6,3260.0,3.29146]
[1736482017010,0.55,3260.6,3260.0,3.06746]
[1736482018298,0.55,3260.6,3260.1,3.0673]
[1736482018473,0.55,3260.6,3260.2,3.06729]
[1736482018876,3.1678,3260.9,3260.1,0.825]
[1736482019210,3.0,3260.9,3260.6,3.06688]
[1736482019881,0.55,3260.8,3260.6,3.06688]
[1736482020415,3.0,3260.9,3260.7,3.06682]
[1736482021080,3.0,3260.9,3260.5,3.06698]
[1736482021403,3.0,3260.9,3260.6,3.06686]
[1736482022112,5.28,3261.0,3260.4,0.825]
[1736482022316,5.28,3261.4,3261.1,0.825]
[1736482022473,5.28,3261.4,3261.2,3.06627]
[1736482023008,5.28,3261.4,3261.3,3.06626]
[1736482023907,0.1678,3261.9,3261.5,3.06607]
[1736482024331,0.1678,3261.9,3261.6,3.06597]
[1736482025225,0.1678,3261.9,3261.1,0.825]
[1736482025518,0.1678,3261.9,3261.2,0.03065995]
[1736482026224,3.0,3262.2,3261.2,0.03065995]
[1736482026375,0.55,3262.1,3261.6,3.06594]
[1736482027221,1.44978,3262.1,3261.6,3.06594]
[1736482027385,1.44978,3262.1,3261.3,0.825]
[1736482027588,1.44978,3262.1,3261.4,3.06611]
[1736482027795,0.55,3261.7,3261.0,3.06654]
[1736482028125,0.55,3261.7,3260.9,0.224]
[1736482029289,0.55,3261.5,3260.9,3.29063]
[1736482029501,0.92178,3261.5,3260.9,3.29063]
[1736482030824,0.55,3261.3,3260.7,3.0668]
[1736482031128,0.55,3261.3,3260.7,0.224]
[1736482031630,0.55,3261.3,3260.7,3.29082]
[1736482031773,0.73284119,3261.3,3260.7,3.29082]
[1736482032170,0.55,3261.1,3260.7,0.224]
[1736482032509,0.55,3261.1,3260.5,3.29098]
[1736482032969,0.55,3261.1,3260.6,3.06691]
[1736482036704,0.55,3261.1,3260.5,0.224]
[1736482036885,0.55,3261.1,3260.8,3.06671]
[1736482037084,0.55,3261.1,3260.5,0.5561828]
[1736482037311,0.55,3261.1,3260.6,3.06689]
[1736482042357,5.83,3261.1,3260.3,0.224]
[1736482042561,0.1678,3260.8,3260.2,3.06727]
[1736482043065,0.55,3260.5,3260.0,0.224]
[1736482043756,0.1678,3260.4,3259.7,3.06775]
[1736482043927,0.55,3260.1,3259.4,3.06797]
[1736482044263,0.55,3260.1,3259.7,3.87664]
[1736482044569,3.1678,3260.5,3260.2,3.06728]
[1736482044718,3.0,3260.5,3260.2,3.06728]
[1736482044913,5.28,3260.6,3260.2,3.06728]
[1736482047053,0.55,3260.5,3260.2,3.06728]
[1736482050696,5.28,3260.6,3260.2,1.060628]
[1736482050897,3.06598,3261.6,3260.2,1.060628]
[1736482050898,0.1678,3261.0,3260.7,3.0668]
[1736482051096,0.1678,3261.0,3260.5,3.067]
[1736482051412,0.55,3260.9,3260.3,3.29118]
[1736482051760,0.55,3260.9,3260.3,0.224]
[1736482051960,0.55,3260.9,3260.5,3.06699]
[1736482053878,0.55,3260.9,3260.3,3.29117]
[1736482056279,0.55,3260.9,3260.4,3.0671]
[1736482056477,0.55,3260.9,3260.4,0.8227]
[1736482056682,5.28,3261.2,3260.6,3.06685]
[1736482056683,5.4478,3261.2,3260.6,3.06685]
[1736482056937,0.55,3261.1,3260.7,3.06682]
[1736482058838,5.4478,3261.2,3260.8,3.06664]
[1736482059039,5.4478,3261.2,3260.6,0.392022]
[1736482059205,5.4478,3261.2,3260.8,3.06664]
[1736482059398,5.28,3261.2,3260.6,0.392022]
[1736482059681,3.0,3261.5,3261.1,3.06644]
[1736482060154,3.06541,3262.2,3260.8,0.03066353]
[1736482060155,0.1678,3261.9,3261.2,3.06626]
[1736482060699,0.1678,3261.9,3261.0,3.06652]
[1736482060700,0.93495887,3261.8,3261.0,3.06652]
[1736482061015,0.55,3261.6,3261.0,3.06652]
[1736482061642,0.55,3261.6,3261.1,3.06643]
[1736482061992,0.55,3261.6,3260.9,0.8018]
[1736482062194,0.55,3261.4,3260.8,3.06664]
[1736482062398,0.55,3261.2,3260.8,3.06664]
[1736482066033,0.55,3261.2,3260.9,3.06663]
[1736482067140,0.55,3261.2,3260.7,3.2908]
[1736482068921,0.55,3261.3,3260.8,0.7901]
[1736482069154,0.55,3261.3,3260.9,3.06662]
[1736482070115,0.55,3261.3,3260.8,0.7901]
[1736482070449,0.55,3261.3,3260.8,3.85683]
[1736482072525,0.55,3261.3,3260.8,0.7901]
[1736482072722,0.55,3261.1,3260.4,0.224]
[1736482072938,3.55,3261.1,3260.4,0.224]
[1736482073152,3.55,3261.1,3260.2,0.224]
[1736482073354,4.55182407,3261.1,3260.2,0.224]
[1736482073655,4.55182407,3261.1,3260.3,3.06711]
[1736482076214,4.55182407,3261.1,3260.4,3.0671]
[1736482076750,4.55182407,3261.1,3260.5,3.06692]
[1736482077056,3.55,3261.1,3260.5,3.06692]
[1736482077210,0.55,3261.1,3260.5,0.8122]
[1736482077412,5.4478,3261.2,3260.7,3.06677]
[1736482077727,5.4478,3261.2,3260.3,3.0672]
[1736482077934,5.4478,3261.2,3260.4,3.06704]
[1736482077935,0.55,3260.9,3260.4,3.06704]
[1736482079053,0.1678,3261.0,3260.6,3.0669]
[1736482083360,0.1678,3261.0,3260.6,3.37359]
[1736482083772,0.1678,3261.0,3260.6,3.0669]
[1736482085189,0.55,3260.9,3260.2,1.0362]
[1736482085329,0.55,3260.9,3260.2,3.29127]
[1736482085671,0.1678,3260.8,3260.2,3.29127]
[1736482087069,0.55,3260.7,3260.0,0.224]
[1736482087305,0.55,3260.5,3259.9,0.224]
[1736482087569,0.55,3260.5,3260.0,3.06748]
[1736482087941,0.55,3260.5,3259.9,0.224]
[1736482088888,0.55,3260.3,3259.5,0.8234]
[1736482089029,0.55,3260.1,3259.5,0.224]
[1736482089233,0.55,3260.1,3259.4,3.29196]
[1736482089569,0.55,3260.1,3259.4,3.703496]
[1736482090528,0.55,3260.1,3259.5,3.06793]
[1736482096461,0.55,3260.1,3259.6,3.06785]
[1736482096663,0.1678,3260.5,3259.7,0.8143]
[1736482096796,0.1678,3260.5,3259.8,0.03067119]
[1736482096995,0.1678,3260.5,3260.2,3.06729]
[1736482097244,0.1678,3260.5,3260.2,3.374019]
[1736482097810,0.55,3260.7,3260.3,3.06718]
[1736482098015,0.1678,3260.8,3260.3,3.06718]
[1736482099043,0.16404961,3260.8,3260.3,3.06718]
[1736482099757,0.16404961,3260.8,3260.4,3.06707]
[1736482099939,0.16404961,3260.8,3260.4,3.48894692]
[1736482101547,0.16404961,3260.8,3260.5,3.06697]
[1736482103533,0.7141,3261.4,3260.6,3.06691]
[1736482103703,0.7141,3261.4,3260.7,3.0668]
[1736482104321,0.7141,3261.4,3260.5,3.06699]
[1736482104518,0.7141,3261.4,3260.5,3.46894352]
[1736482105553,0.7141,3261.4,3260.5,3.43827669]
[1736482105762,0.55,3261.2,3260.5,3.43827669]
[1736482106724,0.55,3261.2,3260.6,3.0669]
[1736482108681,0.53527526,3261.8,3260.5,0.40195349]
[1736482108682,0.1641,3261.9,3261.1,3.06644]
[1736482108821,0.1641,3261.9,3261.1,3.06642]
[1736482109675,0.55,3261.8,3261.1,3.06642]
[1736482111265,0.55,3261.6,3260.7,0.8298]
[1736482111470,0.55,3261.6,3260.9,3.06661]
[1736482111762,0.55,3261.6,3260.9,3.456251]
[1736482111926,0.55,3261.6,3261.0,0.7806]
[1736482112289,0.55,3261.6,3261.2,3.06633]
[1736482112790,0.55,3261.6,3261.0,3.84711]
[1736482112921,0.55,3261.6,3261.1,3.06643]
[1736482113324,0.55,3261.6,3261.1,3.45419926]
[1736482117274,0.55,3261.6,3261.1,0.38776926]
[1736482117423,0.55,3261.6,3261.2,3.06631]
[1736482117627,0.1641,3261.7,3261.2,3.06631]
[1736482118136,0.1641,3261.7,3261.3,3.06624]
[1736482118839,0.55,3262.1,3261.4,0.7974]
[1736482119426,3.55,3262.1,3261.3,3.06624]
[1736482119623,0.55,3261.9,3261.3,3.06624]
[1736482127882,0.55,3261.9,3261.2,0.25466035]
[1736482128706,0.1641,3261.5,3260.9,3.29063]
[1736482128884,0.1641,3261.5,3260.9,3.06663]
[1736482129091,0.55,3261.4,3260.8,0.224]
[1736482129258,0.55,3261.2,3260.6,0.224]
[1736482132654,0.55,3261.2,3260.5,3.067]
[1736482137760,0.55,3261.0,3260.5,3.067]
[1736482138295,0.55,3261.0,3260.4,0.224]
[1736482139267,0.55,3261.0,3260.4,3.32171752]
[1736482139495,0.55,3261.0,3260.4,3.29105]
[1736482139922,0.55,3261.0,3260.2,3.86257]
[1736482140156,0.1641,3260.5,3259.5,3.06795]
[1736482140358,0.1641,3260.5,3259.8,3.06765]
[1736482141832,0.55,3260.4,3259.6,4.393925]
[1736482142027,0.55,3260.2,3259.6,3.06783]
[1736482142243,0.55,3260.0,3259.6,0.224]
[1736482142944,0.55,3260.0,3259.6,3.29185]
[1736482143142,0.55,3260.0,3259.6,3.40010273]
[1736482145789,0.1641,3260.1,3259.7,3.06776]
[1736482146430,0.1641,3260.4,3259.7,0.7744]
[1736482146664,0.1641,3260.4,3260.1,3.06729]
[1736482147852,0.1641,3260.7,3260.3,3.06715]
[1736482148132,0.1641,3260.7,3260.4,3.06708]
[1736482148535,0.1641,3261.0,3260.6,3.06692]
[1736482148790,0.1641,3261.5,3260.5,0.03066913]
[1736482149086,3.1641,3261.5,3260.8,3.06665]
[1736482149786,0.1641,3261.5,3260.9,0.03066587]
[1736482149938,0.1641,3261.5,3261.0,0.224]